bitfinex-derivatives/quotes_ETHF0:USTF0_20260209
["timestamp","ask_amount","ask_price","bid_price","bid_amount"]
[1770601256477,0.00462233,2078.2,2077.3,15.71706152]
[1770601256681,0.00462233,2078.2,2077.5,11.39524652]
[1770601257985,11.70684054,2078.6,2077.5,11.39524652]
[1770601258382,11.70684054,2078.6,2077.1,11.39524652]
[1770601258383,11.94758054,2078.3,2077.1,11.39524652]
[1770601258884,11.95321222,2078.3,2077.1,11.39524652]
[1770601261897,11.70684054,2078.0,2077.1,11.39524652]
[1770601262099,11.70684054,2078.0,2076.9,11.40020979]
[1770601262498,11.94762054,2078.0,2076.9,0.00496327]
[1770601263104,11.70684054,2077.6,2076.4,11.39524652]
[1770601263602,11.70684054,2077.4,2076.4,11.39524652]
[1770601264200,11.70684054,2077.4,2076.4,11.40122795]
[1770601264398,11.70684054,2077.4,2076.4,0.00598143]
[1770601264806,2.7837946,2077.1,2076.0,11.39524652]
[1770601265006,11.70684054,2077.0,2075.6,11.39524652]
[1770601265205,11.70684054,2077.0,2075.6,11.65257042]
[1770601265905,11.70684054,2077.0,2075.6,11.65838251]
[1770601266104,11.70684054,2077.0,2075.7,11.63628652]
[1770601266307,11.70684054,2077.0,2075.7,11.39524652]
[1770601268503,11.94773054,2077.0,2075.7,11.39524652]
[1770601269106,11.70684054,2077.0,2075.7,11.39524652]
[1770601274010,11.94773054,2077.0,2075.7,11.39524652]
[1770601279718,11.40603952,2076.7,2075.6,0.00581209]
[1770601280012,11.41152655,2076.7,2075.6,11.41179759]
[1770601280513,11.41152655,2076.7,2075.6,0.00581209]
[1770601280711,11.40603952,2076.5,2075.6,2.09e-06]
[1770601281012,11.40603952,2076.1,2075.6,2.09e-06]
[1770601281213,11.40603952,2076.1,2075.2,11.4059855]
[1770601281214,11.40603952,2076.0,2075.2,11.4059855]
[1770601281811,11.40603952,2076.0,2074.8,11.66473967]
[1770601282212,11.40603952,2076.0,2074.8,11.66881446]
[1770601283122,52.20603952,2076.1,2074.8,11.66881446]
[1770601283315,11.40603952,2076.0,2074.8,11.90995446]
[1770601285921,11.40603952,2076.4,2075.0,11.4059855]
[1770601286119,11.40603952,2076.6,2075.2,11.4059855]
[1770601286313,11.40603952,2076.5,2075.4,11.4059855]
[1770601289918,11.64698952,2076.5,2075.4,11.4059855]
[1770601291219,11.40603952,2076.5,2075.4,11.4059855]
[1770601291419,11.40603952,2076.1,2075.0,11.4059855]
[1770601291619,11.40603952,2075.9,2074.8,0.00407479]
[1770601291820,0.24103,2075.8,2074.8,0.00407479]
[1770601292014,11.40603952,2075.7,2074.8,11.41006029]
[1770601292722,11.40603952,2075.7,2074.8,0.00407479]
[1770601292918,11.40603952,2075.7,2074.8,11.41006029]
[1770601293118,11.40603952,2075.7,2074.8,0.00407479]
[1770601294119,11.40603952,2075.7,2074.8,11.41006029]
[1770601294319,53.84322322,2076.1,2074.8,11.65120029]
[1770601294521,11.40603952,2076.1,2074.9,11.4059855]
[1770601295319,11.40603952,2076.4,2075.2,11.4059855]
[1770601295722,11.64700952,2076.4,2075.2,11.4059855]
[1770601297029,11.40603952,2076.3,2075.2,11.4059855]
[1770601297824,11.40603952,2076.1,2075.2,11.4059855]
[1770601299124,11.40603952,2075.6,2074.8,11.41006029]
[1770601299323,11.40603952,2075.6,2074.8,0.00407479]
[1770601299728,11.64708952,2075.6,2074.8,0.00407479]
[1770601300730,11.40603952,2075.4,2074.8,0.00284474]
[1770601301028,11.40603952,2075.4,2074.4,11.4059855]
[1770601301531,11.40603952,2075.2,2073.9,11.4059855]
[1770601302024,11.40603952,2075.2,2073.9,11.41189908]
[1770601302025,11.40603952,2075.0,2073.9,11.41189908]
[1770601302224,11.40603952,2075.0,2073.9,11.66615514]
[1770601302827,11.41155929,2075.2,2073.9,11.66615514]
[1770601303629,11.41155929,2075.2,2074.0,11.4059855]
[1770601307128,0.00551977,2075.2,2074.2,11.52506781]
[1770601307335,11.77634322,2076.0,2074.6,11.52506781]
[1770601307736,11.77634322,2075.9,2074.6,11.52506781]
[1770601308339,11.78218589,2075.9,2074.6,11.76623781]
[1770601308735,0.00584267,2075.9,2074.6,11.76623781]
[1770601309141,11.78218589,2075.9,2074.6,11.76623781]
[1770601309642,11.78218589,2075.9,2074.8,11.76620781]
[1770601310142,11.78218589,2075.9,2074.8,11.52506781]
[1770601310337,11.78218589,2075.9,2074.3,11.52506781]
[1770601310832,12.02320589,2075.9,2074.3,11.52506781]
[1770601311233,11.77634322,2075.7,2074.3,11.52506781]
[1770601311643,12.01738322,2075.7,2074.3,11.52506781]
[1770601311839,11.77634322,2075.5,2074.3,11.52506781]
[1770601312033,11.77634322,2075.5,2073.9,4.82323464]
[1770601312034,11.77634322,2075.3,2074.0,11.52506781]
[1770601312536,0.24111,2075.1,2074.0,11.52506781]
[1770601312741,0.24111,2075.1,2073.9,11.53098139]
[1770601312742,11.77634322,2075.0,2073.9,11.53098139]
[1770601313137,11.77634322,2075.0,2073.9,0.00591358]
[1770601313747,11.77634322,2075.0,2073.9,11.53098139]
[1770601314639,11.77634322,2074.8,2073.9,0.00591358]
[1770601314845,0.24114,2074.9,2073.9,0.00591358]
[1770601314846,11.77634322,2074.6,2073.9,0.00591358]
[1770601316746,11.77634322,2074.6,2073.9,11.53098139]
[1770601316948,11.77634322,2074.6,2073.9,0.00591358]
[1770601318451,11.77634322,2074.6,2073.9,11.53098139]
[1770601319648,11.77634322,2074.6,2073.9,0.00591358]
[1770601320154,11.77634322,2074.6,2073.9,11.53098139]
[1770601321648,11.77634322,2074.6,2073.3,11.52506781]
[1770601321854,11.77634322,2074.3,2072.8,0.12211011]
[1770601322154,11.77634322,2074.0,2072.8,11.64717792]
[1770601322743,12.02318553,2074.0,2072.8,11.6527039]
[1770601323151,11.77634322,2073.8,2072.8,11.6527039]
[1770601323364,11.77634322,2073.3,2071.6,11.52506781]
[1770601323557,1.11138,2070.9,2067.0,11.86071217]
[1770601323863,1.11348,2067.0,2062.5,43.65382013]
[1770601324153,1.11382,2066.4,2063.4,11.86071217]
[1770601324361,1.11382,2066.4,2063.5,40.86687183]
[1770601324362,24.84039035,2063.6,2063.5,40.86687183]
[1770601324548,11.86071217,2064.3,2063.7,10.4698314]
[1770601324752,11.86071217,2064.1,2062.5,38.84458664]
[1770601324958,11.77634322,2063.8,2062.6,38.97061898]
[1770601325151,11.77634322,2063.6,2062.7,5.7335559]
[1770601325464,11.77634322,2063.9,2062.7,38.97061898]
[1770601325762,11.77634322,2063.7,2051.3,47.67757667]
[1770601325954,11.86071217,2063.5,2061.6,1.11638]
[1770601326150,11.86071217,2063.3,2061.9,5.77239638]
[1770601326448,11.77634322,2063.5,2061.6,11.52506781]
[1770601326763,0.08441162,2063.0,2062.1,11.52506781]
[1770601326953,11.77634322,2064.0,2062.3,11.52506781]
[1770601327152,11.78008884,2064.3,2062.5,11.52506781]
[1770601327360,11.78008884,2064.3,2062.5,11.53102888]
[1770601327653,1.11409,2065.9,2062.1,0.247]
[1770601327654,11.77634322,2065.6,2062.3,10.44594627]
[1770601327857,11.77634322,2065.6,2062.1,31.214]
[1770601327858,11.77634322,2065.6,2064.0,12.64015781]
[1770601328056,11.77634322,2065.6,2062.6,6.75293565]
[1770601328057,11.77634322,2065.6,2063.2,11.52506781]
[1770601328359,11.77634322,2064.6,2062.7,11.52506781]
[1770601328655,11.77634322,2064.4,2062.7,0.00358288]
[1770601328856,11.77634322,2064.0,2062.7,0.00358288]
[1770601329061,11.77634322,2063.8,2061.6,12.64145781]
[1770601329257,11.77634322,2063.8,2061.6,11.52506781]
[1770601329858,11.77634322,2063.8,2061.1,11.52506781]
[1770601330052,11.77634322,2063.8,2061.3,11.52506781]
[1770601330253,11.77634322,2063.8,2062.2,1.11606]
[1770601330455,11.77634322,2063.8,2062.2,11.52506781]
[1770601330660,11.77634322,2063.8,2062.1,42.34206781]
[1770601330859,11.77634322,2063.8,2062.2,11.52506781]
[1770601331070,11.77634322,2063.8,2062.4,12.64100781]
[1770601331270,11.77634322,2063.8,2061.6,11.52506781]
[1770601331766,11.77634322,2063.8,2062.0,11.52506781]
[1770601331965,11.77634322,2063.8,2062.2,11.52506781]
[1770601332266,11.77634322,2063.8,2062.8,11.52506781]
[1770601332562,11.77634322,2064.1,2062.8,0.00612985]
[1770601332769,11.77634322,2064.1,2062.8,11.53119766]
[1770601332961,11.77634322,2064.1,2062.2,31.271]
[1770601332962,11.77634322,2063.5,2061.6,11.52506781]
[1770601333163,11.77634322,2063.5,2062.2,11.52506781]
[1770601333470,11.69234322,2063.5,2062.6,11.52506781]
[1770601333854,11.77634322,2064.5,2062.8,11.52506781]
[1770601334263,11.77634322,2064.5,2063.0,11.52506781]
[1770601335766,12.97552428,2064.5,2062.7,11.32487293]
[1770601335958,11.86069428,2064.5,2062.7,11.32487293]
[1770601336356,11.51181054,2064.4,2062.7,11.32487293]
[1770601336559,11.51181054,2064.4,2062.9,11.32487293]
[1770601336961,13.98041015,2064.0,2062.9,11.32487293]
[1770601337356,11.48393994,2064.0,2062.9,11.32487293]
[1770601338067,11.48393994,2064.0,2062.6,11.397658]
[1770601338268,11.48393994,2064.0,2062.8,11.39347178]
[1770601338470,11.48393994,2064.0,2063.0,11.39347178]
[1770601338768,11.48393994,2064.5,2063.4,11.39347178]
[1770601339067,11.48393994,2065.8,2063.8,11.39347178]
[1770601339463,11.48393994,2066.3,2064.2,11.39347178]
[1770601339664,11.48393994,2066.0,2064.2,11.39347178]
[1770601339864,11.48393994,2066.0,2064.4,11.39347178]
[1770601340065,11.5740665,2066.0,2064.4,11.39815351]
[1770601340463,11.48977347,2066.0,2064.4,11.39815351]
[1770601341268,11.48977347,2066.0,2064.6,11.39347178]
[1770601341764,11.48977347,2066.0,2064.4,0.00468173]
[1770601341965,11.48393994,2065.8,2064.4,0.00468173]
[1770601343563,11.72613994,2065.8,2064.4,0.00468173]
[1770601343768,11.48393994,2065.8,2064.4,11.39815351]
[1770601344571,12.68241788,2065.8,2064.4,0.00468173]
[1770601344771,11.48393994,2065.6,2064.4,0.00468173]
[1770601344967,11.48393994,2065.1,2063.5,11.39347178]
[1770601345165,11.48393994,2065.1,2063.7,11.39347178]
[1770601345678,12.84072994,2065.1,2063.3,16.72489772]
[1770601345880,11.48393994,2065.1,2063.9,12.75102178]
[1770601346075,11.48393994,2065.1,2063.9,11.39347178]
[1770601346376,11.48393994,2065.1,2064.2,11.39347178]
[1770601346770,40.8,2065.7,2064.2,11.39347178]
[1770601346971,11.48393994,2065.6,2064.2,11.39347178]
[1770601347369,11.48393994,2065.6,2063.8,11.39347178]
[1770601348081,11.48393994,2065.6,2064.1,11.39347178]
[1770601348582,11.48393994,2065.6,2064.8,11.63578178]
[1770601348783,11.48393994,2065.6,2064.3,11.39347178]
[1770601349075,12.59822994,2065.5,2063.8,0.00621517]
[1770601349275,11.48393994,2063.9,2062.4,11.39347178]
[1770601349473,11.72638994,2063.7,2062.1,11.39347178]
[1770601349668,11.48393994,2063.7,2062.3,11.39347178]
[1770601349872,11.48393994,2063.7,2062.3,11.63608178]
[1770601350269,11.48959683,2063.7,2062.3,11.64164212]
[1770601350570,11.73204683,2063.7,2062.3,0.00556034]
[1770601350976,11.73204683,2063.7,2062.3,11.39903212]
[1770601351479,12.84203994,2063.1,2061.4,11.39347178]
[1770601351674,11.48393994,2062.7,2060.9,11.39347178]
[1770601351869,11.48393994,2062.2,2060.9,11.39347178]
[1770601352075,7.27462792,2062.6,2060.5,11.39347178]
[1770601352076,11.48393994,2062.0,2060.5,11.39347178]
[1770601352380,7.27462792,2062.1,2060.0,11.39347178]
[1770601352381,11.48393994,2061.2,2060.0,11.39347178]
[1770601352681,11.48393994,2061.0,2060.0,0.00382562]
[1770601352975,11.48393994,2061.0,2059.0,1.11777]
[1770601352976,11.48393994,2060.0,2058.1,12.75483178]
[1770601353179,11.48393994,2059.8,2058.5,11.39347178]
[1770601353377,11.48393994,2058.7,2058.2,11.74298654]
[1770601353572,17.05220705,2058.5,2057.6,11.13139172]
[1770601353775,7.27462792,2058.4,2057.6,11.39455348]
[1770601353974,5.56826711,2058.8,2058.0,11.39347178]
[1770601354176,5.56826711,2059.0,2058.1,11.39347178]
[1770601354376,41.61572875,2058.5,2057.5,11.39347178]
[1770601354582,40.8,2059.7,2058.8,11.39347178]
[1770601354884,11.48393994,2060.3,2058.8,11.39347178]
[1770601355179,6.58085625,2060.8,2059.5,11.39347178]
[1770601355180,11.48393994,2060.8,2059.5,11.39347178]
[1770601355385,11.48771826,2060.8,2059.5,11.39699259]
[1770601356781,11.48771826,2060.8,2059.5,0.00352081]
[1770601356974,11.48393994,2060.6,2059.5,11.39699259]
[1770601357180,0.00377832,2060.8,2059.5,11.39699259]
[1770601357480,11.48771826,2060.8,2059.5,11.39699259]
[1770601357678,11.48771826,2060.8,2059.5,0.00352081]
[1770601357883,11.48393994,2060.6,2059.5,0.00352081]
[1770601358277,11.48393994,2060.6,2059.5,11.39699259]
[1770601358474,11.48771826,2060.8,2059.5,0.00352081]
[1770601358674,11.48393994,2060.6,2059.5,0.00352081]
[1770601358982,11.48393994,2060.6,2059.5,11.39699259]
[1770601359785,11.48393994,2060.6,2059.5,0.00352081]
[1770601359982,11.48393994,2060.4,2059.5,0.00352081]
[1770601360282,11.48393994,2060.4,2058.4,11.39347178]
[1770601360283,11.48393994,2060.2,2058.4,11.39347178]
[1770601361186,11.48393994,2060.2,2058.4,11.39916211]
[1770601361385,11.48393994,2059.8,2058.4,0.00569033]
[1770601362183,11.48393994,2059.6,2058.4,0.00569033]
[1770601362389,11.48393994,2059.4,2058.4,0.00569033]
[1770601362684,11.48393994,2059.4,2057.8,11.39347178]
[1770601363185,11.48393994,2059.2,2057.8,11.39347178]
[1770601363383,11.48393994,2059.5,2058.3,11.39347178]
[1770601363785,1.11716,2060.2,2058.3,11.39347178]
[1770601363786,11.48393994,2060.2,2058.7,11.39347178]
[1770601363989,11.48393994,2060.2,2058.9,11.39347178]
[1770601364182,11.48393994,2060.8,2059.3,11.39347178]
[1770601364687,11.48393994,2061.1,2059.8,11.39347178]
[1770601364879,0.00586441,2061.1,2060.0,11.39347178]
[1770601365588,0.00586441,2061.1,2060.2,10.78706119]
[1770601365780,11.63052688,2061.6,2060.2,11.51308197]
[1770601366180,5.05891829,2062.2,2060.2,11.51308197]
[1770601366181,11.63052688,2061.9,2060.4,11.90408119]
[1770601366384,11.63052688,2062.2,2060.8,11.75587516]
[1770601366784,2.49647021,2062.0,2060.8,11.75587516]
[1770601366985,2.49647021,2062.0,2060.8,12.87269516]
[1770601367181,0.00617475,2062.2,2061.2,10.78706119]
[1770601367382,11.63052688,2063.1,2061.2,10.78706119]
[1770601367790,11.63052688,2062.9,2061.2,12.14641119]
[1770601367987,11.63052688,2063.2,2061.9,1.11621]
[1770601368291,11.63052688,2062.1,2061.1,11.73575338]
[1770601368498,11.63052688,2062.1,2061.2,10.78706119]
[1770601368695,11.63052688,2063.1,2061.4,10.78706119]
[1770601368989,11.63052688,2063.1,2061.4,11.52848908]
[1770601369182,11.63052688,2062.6,2061.4,11.52848908]
[1770601369381,11.63052688,2062.6,2061.4,11.53282093]
[1770601369896,11.63052688,2063.1,2061.6,10.78706119]
[1770601370784,0.00416039,2063.2,2062.0,10.78706119]
[1770601371094,11.63468727,2063.2,2062.0,11.50299673]
[1770601371483,11.63468727,2063.2,2062.0,0.71593554]
[1770601372292,11.63468727,2063.2,2062.1,16.95803013]
[1770601372495,0.00416039,2063.2,2062.2,10.78706119]
[1770601372889,0.00416039,2063.2,2062.2,12.14574119]
[1770601373091,11.63052688,2065.1,2063.1,11.51557347]
[1770601373290,11.63052688,2064.5,2063.1,11.51557347]
[1770601374090,11.63575452,2064.5,2063.1,11.51949217]
[1770601374394,11.63052688,2063.9,2063.1,0.73243098]
[1770601374996,11.63052688,2063.9,2062.1,10.78706119]
[1770601375997,11.63052688,2063.9,2062.1,10.79188743]
[1770601376399,11.63052688,2063.7,2062.1,10.79188743]
[1770601377197,11.63052688,2063.7,2062.3,10.78706119]
[1770601377395,11.63052688,2064.0,2062.5,10.78706119]
[1770601377595,12.98807688,2064.0,2062.5,0.73429318]
[1770601377900,11.63052688,2063.8,2062.5,0.73429318]
[1770601379506,11.63052688,2063.8,2062.5,11.52135437]
[1770601379693,11.63052688,2063.8,2062.5,0.73429318]
[1770601380100,11.63052688,2063.8,2062.5,11.52135437]
[1770601380504,11.63052688,2064.3,2062.7,10.78706119]
[1770601380797,11.63052688,2064.1,2062.7,10.78706119]
[1770601381002,11.63052688,2063.9,2062.7,10.78706119]
[1770601381189,11.87294688,2063.9,2062.5,0.73429318]
[1770601381393,11.63052688,2063.9,2062.5,11.52135437]
[1770601381796,11.63575452,2064.5,2062.7,11.90285119]
[1770601381998,11.63052688,2064.4,2062.7,11.90285119]
[1770601382196,15.81569517,2064.4,2062.9,10.78706119]
[1770601382395,11.63052688,2064.3,2062.9,11.02959119]
[1770601382797,11.63575452,2064.5,2062.9,11.02959119]
[1770601383194,0.00522764,2064.5,2063.1,10.78706119]
[1770601383505,11.63052688,2065.1,2063.8,10.78706119]
[1770601383699,11.63052688,2065.1,2063.8,11.50920905]
[1770601383895,3.94280829,2066.0,2063.8,11.50920905]
[1770601383896,11.63052688,2065.6,2064.2,11.02944119]
[1770601384501,11.63460063,2065.6,2064.2,11.03435114]
[1770601385307,0.00407375,2065.6,2064.4,10.78706119]
[1770601385605,5.56826711,2066.9,2064.4,10.78706119]
[1770601385606,11.63052688,2066.2,2064.9,10.78706119]
[1770601385902,11.63052688,2066.8,2065.1,10.78706119]
[1770601386199,11.63052688,2066.6,2065.1,11.51583672]
[1770601386400,12.98634688,2066.6,2065.1,11.51583672]
[1770601386603,11.87699777,2066.6,2065.1,11.51583672]
[1770601386997,11.63052688,2066.4,2065.1,0.72877553]
[1770601388203,11.87265688,2066.4,2065.1,0.72877553]
[1770601389100,11.63052688,2066.2,2065.1,0.72877553]
[1770601389304,11.63052688,2066.2,2065.1,11.51583672]
[1770601389495,11.63052688,2066.2,2065.1,0.72877553]
[1770601390801,11.63052688,2066.0,2065.1,0.72877553]
[1770601391208,11.63052688,2066.0,2064.4,11.52242124]
[1770601394317,11.63052688,2065.8,2064.4,11.52242124]
[1770601394605,11.63052688,2065.8,2064.6,10.78706119]
[1770601394806,11.63052688,2065.8,2064.4,11.52242124]
[1770601396110,11.63052688,2065.8,2064.4,11.76478124]
[1770601396407,11.63052688,2065.8,2064.6,11.69398297]
[1770601396604,11.63052688,2065.8,2064.4,12.09828755]
[1770601397114,11.58382418,2065.4,2064.4,12.09828755]
[1770601397715,11.58382418,2065.8,2064.4,12.09828755]
[1770601398512,0.24219,2065.9,2063.8,12.08507536]
[1770601398513,11.58382418,2065.1,2063.8,12.08507536]
[1770601398704,11.82610418,2065.1,2063.8,12.08507536]
[1770601398902,11.58382418,2064.9,2063.8,12.08507536]
[1770601399102,11.58382418,2064.9,2063.8,0.72214786]
[1770601399303,11.58382418,2064.7,2063.8,0.72214786]
[1770601399514,11.58382418,2064.5,2063.8,0.46861736]
[1770601399807,11.58863127,2064.7,2063.8,11.83154486]
[1770601400006,11.58863127,2064.7,2063.8,0.46861736]
[1770601400205,11.58382418,2064.5,2063.8,0.46861736]
[1770601401214,11.58382418,2064.3,2063.2,11.3629275]
[1770601402210,3.05426067,2064.6,2063.2,11.3629275]
[1770601402407,16.80250919,2064.5,2063.2,11.3629275]
[1770601402609,5.21868501,2064.4,2063.2,11.3629275]
[1770601403008,11.58863127,2064.7,2063.6,11.3629275]
[1770601403203,11.58863127,2064.7,2063.6,12.09323768]
[1770601403408,11.58382418,2064.6,2063.6,12.09323768]
[1770601403712,11.58382418,2064.6,2063.6,12.09670111]
[1770601403919,11.58382418,2064.4,2063.6,0.73377361]
[1770601405110,5.11679092,2064.3,2063.6,0.73377361]
[1770601405311,11.58382418,2064.4,2063.6,0.73377361]
[1770601405511,11.58382418,2064.2,2063.6,0.73377361]
[1770601406913,11.82618418,2064.5,2063.6,0.73377361]
[1770601407114,11.58382418,2064.3,2063.6,0.73377361]
[1770601408115,5.06325656,2064.2,2063.6,0.73377361]
[1770601408312,11.82625418,2063.8,2063.1,0.71885426]
[1770601408508,11.58382418,2063.6,2063.1,0.71885426]
[1770601409323,11.58382418,2063.6,2062.3,11.3629275]
[1770601409620,11.58382418,2063.4,2062.5,12.09722068]
[1770601409816,5.06410592,2063.3,2062.5,0.73429318]
[1770601410122,11.58382418,2063.1,2062.5,0.73429318]
[1770601410318,11.58729229,2063.1,2062.5,0.7384605]
[1770601411923,0.00346811,2063.1,2062.5,12.101388]
[1770601412417,11.58729229,2063.1,2062.5,0.7384605]
[1770601413722,11.58382418,2062.9,2062.0,0.71593554]
[1770601414022,14.39574485,2062.7,2061.4,12.10435539]
[1770601414223,11.58382418,2062.5,2061.4,12.10435539]
[1770601414717,11.58382418,2062.5,2061.4,0.74567657]
[1770601414924,11.82640418,2062.5,2061.4,0.74567657]
[1770601415124,11.58382418,2062.3,2061.4,0.74567657]
[1770601415326,11.82640418,2062.5,2061.4,12.10860407]
[1770601415722,11.82643418,2062.3,2061.4,0.74567657]
[1770601416827,11.58382418,2062.6,2061.4,12.10860407]
[1770601417129,11.58382418,2063.0,2061.6,11.3629275]
[1770601417321,11.58382418,2062.6,2061.6,0.72241235]
[1770601417720,11.58382418,2062.4,2061.6,0.72241235]
[1770601420030,11.82642418,2062.4,2061.4,0.74567657]
[1770601420222,11.58382418,2062.2,2061.4,0.74567657]
[1770601420522,11.58382418,2062.2,2061.4,12.10860407]
[1770601420824,11.58382418,2062.7,2061.4,12.10860407]
[1770601421129,11.58382418,2062.5,2061.4,12.10860407]
[1770601422222,11.58382418,2062.8,2061.4,12.10860407]
[1770601422425,11.58382418,2062.8,2061.6,11.3629275]
[1770601422621,11.58382418,2062.8,2061.6,12.08975016]
[1770601423320,11.58729229,2063.1,2061.6,12.08975016]
[1770601423523,11.58382418,2062.8,2061.6,12.08975016]
[1770601426724,10.98392782,2063.1,2062.0,11.21226048]
[1770601428134,10.98045971,2063.4,2062.3,11.45487048]
[1770601428329,10.98045971,2063.4,2062.3,11.93939539]
[1770601428629,10.98045971,2063.8,2062.7,11.21226048]
[1770601428937,40.8,2064.0,2062.9,11.21226048]
[1770601429126,10.98045971,2064.1,2062.9,11.92614341]
[1770601429330,10.98595723,2064.1,2063.0,11.21226048]
[1770601429830,10.35609953,2064.3,2063.2,11.45476048]
[1770601430035,9.36506516,2064.3,2063.2,11.45476048]
[1770601430336,20.34552487,2064.3,2063.2,11.21226048]
[1770601430527,9.36506516,2064.3,2063.3,11.21226048]
[1770601430732,9.36506516,2064.3,2063.3,11.45475048]
[1770601430932,9.37055345,2064.3,2063.4,11.21226048]
[1770601431537,10.98045971,2064.9,2063.4,11.94703833]
[1770601432537,10.98635696,2064.9,2063.4,11.94703833]
[1770601432738,12.10096696,2064.9,2063.4,11.94703833]
[1770601432927,10.98045971,2064.6,2063.4,0.73477785]
[1770601433132,10.98045971,2064.4,2063.4,0.73477785]
[1770601433334,13.79238038,2064.7,2063.4,11.94703833]
[1770601433542,10.98045971,2064.7,2063.6,11.21226048]
[1770601434939,0.00589725,2064.9,2063.6,11.21226048]
[1770601435134,10.98635696,2064.9,2063.6,11.45471048]
[1770601435540,10.98635696,2064.9,2063.8,11.21226048]
[1770601436239,10.98045971,2064.7,2063.8,11.21226048]
[1770601436439,10.98045971,2064.7,2063.5,11.21226048]
[1770601437536,10.98045971,2064.5,2063.4,0.73477785]
[1770601438041,10.98045971,2064.5,2063.4,11.94703833]
[1770601440249,10.98045971,2064.5,2063.4,0.73477785]
[1770601440450,10.98045971,2064.0,2062.9,0.71845099]
[1770601440756,10.98045971,2064.0,2062.9,11.93071147]
[1770601441249,10.98045971,2064.6,2063.1,11.21226048]
[1770601441459,10.98045971,2064.6,2063.1,11.45476048]
[1770601441644,10.98045971,2064.6,2062.9,0.71845099]
[1770601441844,10.98045971,2064.6,2063.2,11.21226048]
[1770601442355,10.98045971,2064.6,2063.4,11.21226048]
[1770601442556,10.98635696,2064.9,2064.1,11.21226048]
[1770601442750,0.00589725,2064.9,2064.1,11.92781747]
[1770601443253,10.98045971,2065.2,2064.3,11.21226048]
[1770601443753,10.98045971,2065.9,2064.3,11.21226048]
[1770601443950,10.98045971,2065.7,2064.3,11.21226048]
[1770601444154,10.98442295,2065.7,2064.3,11.21226048]
[1770601445558,10.98442295,2065.7,2064.1,0.71555699]
[1770601445745,10.98045971,2065.5,2064.1,0.95552962]
[1770601446458,10.98045971,2065.3,2064.1,12.1677901]
[1770601446751,2.80552238,2066.1,2064.9,11.21226048]
[1770601446957,10.98045971,2066.3,2065.1,11.21226048]
[1770601447860,10.98440659,2066.3,2065.1,11.21747561]
[1770601448663,10.98440659,2066.3,2065.1,0.00521513]
[1770601449050,11.22655659,2066.3,2065.1,0.00521513]
[1770601450157,10.98045971,2066.1,2065.1,0.00521513]
[1770601450963,10.98045971,2066.1,2065.1,11.21747561]
[1770601451258,10.98045971,2066.1,2065.1,0.00521513]
[1770601451662,10.98045971,2066.1,2065.1,11.21747561]
[1770601452363,0.00394688,2066.3,2065.3,11.21226048]
[1770601452965,10.98440659,2066.3,2065.3,11.21226048]
[1770601454456,0.00394688,2066.3,2065.3,11.45451048]
[1770601454657,10.98440659,2066.3,2065.3,11.45451048]
[1770601454854,0.00394688,2066.3,2065.3,11.45451048]
[1770601455458,11.24851238,2066.3,2065.3,11.21226048]
[1770601457662,11.24851238,2066.3,2065.2,22.552]
[1770601458857,11.22730177,2066.1,2065.1,0.00521513]
[1770601459058,11.46952177,2065.6,2064.2,11.39629205]
[1770601459260,11.22730177,2065.6,2064.4,11.39629205]
[1770601459466,11.22730177,2065.4,2064.4,11.39629205]
[1770601460064,11.22730177,2065.4,2064.4,11.40015636]
[1770601460263,11.22730177,2065.4,2064.4,0.00386431]
[1770601460663,11.22730177,2065.2,2064.4,0.00386431]
[1770601462572,11.22730177,2065.5,2064.4,11.40015636]
[1770601462775,11.22730177,2065.5,2064.4,11.64251636]
[1770601463276,11.22730177,2066.1,2064.4,11.64251636]
[1770601463570,11.22730177,2065.9,2064.4,11.40015636]
[1770601463775,11.22730177,2065.8,2064.6,12.12706403]
[1770601463975,4.82908464,2065.7,2064.6,0.73077198]
[1770601464175,11.22730177,2065.5,2064.6,0.73077198]
[1770601465268,11.22730177,2065.3,2064.6,0.73077198]
[1770601465871,11.22730177,2065.8,2064.6,12.12706403]
[1770601466472,11.46950177,2065.8,2064.6,0.73077198]
[1770601466776,11.22730177,2065.6,2064.6,0.73077198]
[1770601466976,11.22730177,2065.4,2064.6,0.73077198]
[1770601467179,11.22730177,2065.4,2064.6,12.12706403]
[1770601467483,11.22730177,2065.4,2064.6,0.73077198]
[1770601468473,11.22730177,2065.8,2064.6,12.12706403]
[1770601468779,11.22730177,2066.1,2064.8,11.63860205]
[1770601469380,40.80394688,2066.3,2064.8,11.63860205]
[1770601469381,11.22730177,2065.9,2064.8,11.39629205]
[1770601470985,11.22730177,2066.2,2065.0,11.39629205]
[1770601471178,16.0435034,2066.1,2065.0,11.39629205]
[1770601471379,11.22730177,2066.1,2065.0,11.39629205]
[1770601471686,11.22730177,2066.1,2065.0,11.63858205]
[1770601472383,11.22730177,2066.0,2065.0,11.63858205]
[1770601472779,11.22730177,2066.0,2065.0,11.39629205]
[1770601476784,11.22730177,2066.0,2064.7,11.39629205]
[1770601476982,11.22730177,2065.8,2064.7,11.39629205]
[1770601477183,11.22730177,2065.6,2064.7,11.39629205]
[1770601477583,11.22730177,2065.6,2064.6,30.10177198]
[1770601477984,11.22730177,2065.4,2064.6,30.10177198]
[1770601478491,4.77417555,2065.3,2064.6,30.10177198]
[1770601478694,11.22730177,2065.4,2064.6,30.10177198]
[1770601478884,11.22730177,2065.2,2064.6,30.10177198]
[1770601479084,11.22730177,2065.2,2064.6,0.73077198]
[1770601482890,11.22730177,2065.5,2064.6,12.12706403]
[1770601483292,11.22730177,2065.5,2064.6,11.39629205]
[1770601483593,11.22730177,2065.7,2064.6,11.39629205]
[1770601483789,11.22730177,2065.5,2064.6,11.39629205]
[1770601486189,11.22730177,2065.5,2064.6,11.63863205]
[1770601486890,11.22730177,2065.5,2064.6,0.24234]
[1770601487095,11.22730177,2065.5,2064.7,29.867]
[1770601487296,11.22730177,2065.5,2064.7,41.58068676]
[1770601487594,11.22730177,2065.5,2064.8,11.71368676]
[1770601488594,42.52334363,2065.9,2064.8,11.71368676]
[1770601488795,10.7353367,2065.7,2064.8,11.71368676]
[1770601488996,4.70974974,2065.6,2064.8,11.71368676]
[1770601489694,10.7353367,2065.7,2064.8,11.95599676]
[1770601489890,10.7353367,2065.9,2065.0,11.71368676]
[1770601490093,10.7353367,2066.2,2065.2,11.95595676]
[1770601490293,4.71158477,2066.1,2065.4,11.71368676]
[1770601490497,10.7353367,2066.2,2065.4,11.71368676]
[1770601490693,10.7353367,2066.0,2065.3,29.956]
[1770601490897,10.7353367,2066.0,2065.0,11.71368676]
[1770601491094,10.7353367,2066.0,2065.1,29.981]
[1770601491290,10.7353367,2065.8,2065.1,29.981]
[1770601493196,10.7353367,2065.6,2064.7,0.24232]
[1770601493392,10.7353367,2065.4,2064.4,0.00386431]
[1770601493592,42.76556363,2065.7,2064.5,41.76568676]
[1770601493593,10.7353367,2065.2,2064.5,41.76568676]
[1770601494105,10.7353367,2065.2,2064.5,30.052]
[1770601495199,10.7353367,2065.2,2064.6,30.107]
[1770601497601,10.7353367,2065.5,2064.7,11.71368676]
[1770601498106,51.5353367,2065.8,2064.7,11.71368676]
[1770601498302,10.7353367,2065.6,2064.7,11.71368676]
[1770601499000,10.7353367,2065.4,2064.6,30.107]